[Event "Late-Titled-Tuesday-Blitz-June-25-2024"]
[Site "Chess.com"]
[Date "2024.06.25"]
[Round "7"]
[White "gabduschew"]
[Black "Cxrjs"]
[Result "0-1"]
[WhiteElo "2398"]
[BlackElo "2525"]
[TimeControl "180+1"]
[EndTime "15:17:19 PDT"]
[Termination "Cxrjs won by checkmate"]

1. e4 {[%clk 0:02:58]} 1... e5 {[%clk 0:02:59.4]} 2. Nf3 {[%clk 0:02:57]} 2...
Nc6 {[%clk 0:02:59.6]} 3. Bc4 {[%clk 0:02:56.6]} 3... Bc5 {[%clk 0:02:59.7]} 4.
d3 {[%clk 0:02:56.5]} 4... Nf6 {[%clk 0:03:00.1]} 5. c3 {[%clk 0:02:55.5]} 5...
d6 {[%clk 0:03:00.5]} 6. Nbd2 {[%clk 0:02:54.4]} 6... a5 {[%clk 0:03:00.2]} 7.
Bb3 {[%clk 0:02:49.3]} 7... O-O {[%clk 0:02:59.6]} 8. Qe2 {[%clk 0:02:45.3]}
8... b6 {[%clk 0:02:47.1]} 9. Nf1 {[%clk 0:02:28.3]} 9... d5 {[%clk 0:02:46.7]}
10. Ng3 {[%clk 0:02:23.6]} 10... Ba6 {[%clk 0:02:40.6]} 11. Bc2 {[%clk 0:02:18]}
11... h6 {[%clk 0:02:24]} 12. O-O {[%clk 0:02:16.3]} 12... Re8 {[%clk
0:02:16.2]} 13. Re1 {[%clk 0:02:02.3]} 13... Qd7 {[%clk 0:02:12.9]} 14. exd5
{[%clk 0:01:54.8]} 14... Nxd5 {[%clk 0:02:10.8]} 15. Qe4 {[%clk 0:01:38.8]}
15... Nf6 {[%clk 0:01:57.7]} 16. Qh4 {[%clk 0:01:36.7]} 16... Qg4 {[%clk
0:01:55.3]} 17. Qxg4 {[%clk 0:01:31.3]} 17... Nxg4 {[%clk 0:01:55]} 18. Ne4
{[%clk 0:01:32]} 18... Be7 {[%clk 0:01:48.1]} 19. h3 {[%clk 0:01:29.5]} 19...
Nf6 {[%clk 0:01:46.6]} 20. Be3 {[%clk 0:01:29.2]} 20... Nd5 {[%clk 0:01:30.1]}
21. Rad1 {[%clk 0:01:26.7]} 21... f5 {[%clk 0:01:15.1]} 22. Bb3 {[%clk
0:01:14.9]} 22... Rad8 {[%clk 0:01:14.6]} 23. Bc1 {[%clk 0:01:06.7]} 23... a4
{[%clk 0:00:59.5]} 24. Bxa4 {[%clk 0:01:01.3]} 24... fxe4 {[%clk 0:00:57.4]} 25.
dxe4 {[%clk 0:01:01.1]} 25... Nf4 {[%clk 0:00:44.6]} 26. Bxf4 {[%clk 0:00:55]}
26... exf4 {[%clk 0:00:43.7]} 27. Bxc6 {[%clk 0:00:52.2]} 27... Rf8 {[%clk
0:00:43.2]} 28. Bd5+ {[%clk 0:00:49.1]} 28... Kh7 {[%clk 0:00:42]} 29. Nd4
{[%clk 0:00:38.8]} 29... Rd6 {[%clk 0:00:17.7]} 30. Nf5 {[%clk 0:00:37.5]} 30...
Rxf5 {[%clk 0:00:13.1]} 31. exf5 {[%clk 0:00:37.4]} 31... Bf6 {[%clk 0:00:10.1]}
32. Be6 {[%clk 0:00:34.5]} 32... Rc6 {[%clk 0:00:09.4]} 33. Bf7 {[%clk
0:00:28.1]} 33... h5 {[%clk 0:00:04.2]} 34. Bxh5 {[%clk 0:00:25]} 34... Rc5
{[%clk 0:00:04.1]} 35. Bg6+ {[%clk 0:00:25.1]} 35... Kh6 {[%clk 0:00:04.5]} 36.
Re8 {[%clk 0:00:22.3]} 36... Be2 {[%clk 0:00:03.1]} 37. Rh8+ {[%clk 0:00:21.1]}
37... Kg5 {[%clk 0:00:03.7]} 38. Rh5+ {[%clk 0:00:21.1]} 38... Bxh5 {[%clk
0:00:03.5]} 39. Bxh5 {[%clk 0:00:20.4]} 39... Kxh5 {[%clk 0:00:03.7]} 40. g4+
{[%clk 0:00:17.8]} 40... fxg3 {[%clk 0:00:03.7]} 41. fxg3 {[%clk 0:00:18.7]}
41... Kg5 {[%clk 0:00:03.3]} 42. g4 {[%clk 0:00:18.8]} 42... Rb5 {[%clk
0:00:03.8]} 43. Rd2 {[%clk 0:00:18.4]} 43... Ra5 {[%clk 0:00:04.1]} 44. a3
{[%clk 0:00:16.3]} 44... Kf4 {[%clk 0:00:04.7]} 45. Kg2 {[%clk 0:00:16.3]} 45...
Rb5 {[%clk 0:00:04.9]} 46. Re2 {[%clk 0:00:14.9]} 46... Bh4 {[%clk 0:00:04.4]}
47. Rd2 {[%clk 0:00:14.4]} 47... Ke3 {[%clk 0:00:04.1]} 48. Rd7 {[%clk
0:00:05.3]} 48... Rxb2+ {[%clk 0:00:04]} 49. Kg1 {[%clk 0:00:04.7]} 49... Bf6
{[%clk 0:00:02.6]} 50. Rxc7 {[%clk 0:00:04.1]} 50... Kf3 {[%clk 0:00:03.2]} 51.
Rd7 {[%clk 0:00:01.9]} 51... Rb1+ {[%clk 0:00:01.9]} 52. Kh2 {[%clk 0:00:02]}
52... Be5# {[%clk 0:00:02.6]} 0-1

[Event "Late-Titled-Tuesday-Blitz-June-25-2024"]
[Site "Chess.com"]
[Date "2024.06.25"]
[Round "7"]
[White "LUISMIGUELOV"]
[Black "LoonsDeKoeben"]
[Result "0-1"]
[WhiteElo "2239"]
[BlackElo "2423"]
[TimeControl "180+1"]
[EndTime "15:17:19 PDT"]
[Termination "LoonsDeKoeben won on time"]

1. d4 {[%clk 0:03:00.9]} 1... Nf6 {[%clk 0:02:59]} 2. c3 {[%clk 0:03:00.8]} 2...
c5 {[%clk 0:02:57.3]} 3. Bg5 {[%clk 0:03:00]} 3... Ne4 {[%clk 0:02:56.9]} 4. h4
{[%clk 0:02:58.1]} 4... Nxg5 {[%clk 0:02:54.5]} 5. hxg5 {[%clk 0:02:57.3]} 5...
e6 {[%clk 0:02:48]} 6. f4 {[%clk 0:02:55.3]} 6... Nc6 {[%clk 0:02:35.1]} 7. e3
{[%clk 0:02:54.2]} 7... d5 {[%clk 0:02:34.2]} 8. Nf3 {[%clk 0:02:52.7]} 8... Qa5
{[%clk 0:02:23.5]} 9. Bd3 {[%clk 0:02:46.6]} 9... cxd4 {[%clk 0:02:21.2]} 10.
exd4 {[%clk 0:02:45]} 10... Bd6 {[%clk 0:02:20.2]} 11. g3 {[%clk 0:02:43.6]}
11... Bd7 {[%clk 0:01:53.6]} 12. Nbd2 {[%clk 0:02:39.7]} 12... b5 {[%clk
0:01:46.3]} 13. b4 {[%clk 0:02:34.4]} 13... Qb6 {[%clk 0:01:34.9]} 14. Nb3
{[%clk 0:02:31.2]} 14... a5 {[%clk 0:01:33.9]} 15. a3 {[%clk 0:02:28.4]} 15...
axb4 {[%clk 0:01:30]} 16. axb4 {[%clk 0:02:27]} 16... Rxa1 {[%clk 0:01:17.8]}
17. Qxa1 {[%clk 0:02:25.5]} 17... Ke7 {[%clk 0:01:17.2]} 18. Rxh7 {[%clk
0:02:11.6]} 18... Rxh7 {[%clk 0:01:16.6]} 19. Bxh7 {[%clk 0:02:11]} 19... g6
{[%clk 0:01:17.1]} 20. Nc5 {[%clk 0:01:57.5]} 20... Bxc5 {[%clk 0:00:59.1]} 21.
bxc5 {[%clk 0:01:54.9]} 21... Qb8 {[%clk 0:00:40.4]} 22. Qa3 {[%clk 0:01:36.4]}
22... Qh8 {[%clk 0:00:07.2]} 23. Bxg6 {[%clk 0:01:24.2]} 23... fxg6 {[%clk
0:00:06.4]} 24. Ne5 {[%clk 0:01:21.4]} 24... Qh1+ {[%clk 0:00:04.3]} 25. Kf2
{[%clk 0:01:19.8]} 25... Qh2+ {[%clk 0:00:04.6]} 26. Kf3 {[%clk 0:01:16.2]}
26... Nxe5+ {[%clk 0:00:03.8]} 27. dxe5 {[%clk 0:01:06.4]} 27... Qh1+ {[%clk
0:00:03.1]} 28. Kf2 {[%clk 0:01:04.9]} 28... Qh2+ {[%clk 0:00:03.5]} 29. Kf3
{[%clk 0:01:04.2]} 29... Kd8 {[%clk 0:00:02.6]} 30. Qa5+ {[%clk 0:00:58.3]}
30... Ke7 {[%clk 0:00:02]} 31. Qc7 {[%clk 0:00:52.5]} 31... Qc2 {[%clk
0:00:02.1]} 32. Qd6+ {[%clk 0:00:40.3]} 32... Ke8 {[%clk 0:00:02.5]} 33. Qb8+
{[%clk 0:00:38.7]} 33... Kf7 {[%clk 0:00:02.3]} 34. Qd6 {[%clk 0:00:35.6]} 34...
Qxc3+ {[%clk 0:00:02.6]} 35. Kg4 {[%clk 0:00:33.7]} 35... Ke8 {[%clk 0:00:02.9]}
36. Qb8+ {[%clk 0:00:32.3]} 36... Ke7 {[%clk 0:00:03.5]} 37. Qd6+ {[%clk
0:00:31.7]} 37... Kd8 {[%clk 0:00:04]} 38. Qf8+ {[%clk 0:00:27.2]} 38... Kc7
{[%clk 0:00:03.9]} 39. Qd6+ {[%clk 0:00:26.2]} 39... Kc8 {[%clk 0:00:04.4]} 40.
Qf8+ {[%clk 0:00:20.5]} 40... Kb7 {[%clk 0:00:04.8]} 41. Qd6 {[%clk 0:00:18.4]}
41... Bc6 {[%clk 0:00:05.2]} 42. Qe7+ {[%clk 0:00:17]} 42... Ka6 {[%clk
0:00:05.7]} 43. Qxe6 {[%clk 0:00:15]} 43... Qxc5 {[%clk 0:00:06]} 44. Qxg6
{[%clk 0:00:14.3]} 44... b4 {[%clk 0:00:06.5]} 45. Qb1 {[%clk 0:00:10.5]} 45...
Kb5 {[%clk 0:00:06.2]} 46. g6 {[%clk 0:00:09.5]} 46... Qe7 {[%clk 0:00:05.8]}
47. Qf1+ {[%clk 0:00:05.3]} 47... Kb6 {[%clk 0:00:05.5]} 48. Qf2+ {[%clk
0:00:01.8]} 48... Kb5 {[%clk 0:00:06.1]} 49. Qe2+ {[%clk 0:00:01.5]} 49... Kc5
{[%clk 0:00:06.6]} 50. Qe3+ {[%clk 0:00:01.5]} 50... d4 {[%clk 0:00:07.2]} 51.
Qc1+ {[%clk 0:00:01.3]} 51... Kb5 {[%clk 0:00:07.8]} 52. Qf1+ {[%clk 0:00:01.1]}
52... Kc5 {[%clk 0:00:08]} 53. Qf2 {[%clk 0:00:01.2]} 53... Qe6+ {[%clk
0:00:07.8]} 54. f5 {[%clk 0:00:01]} 54... Qxe5 {[%clk 0:00:08.2]} 0-1

[Event "Late-Titled-Tuesday-Blitz-June-25-2024"]
[Site "Chess.com"]
[Date "2024.06.25"]
[Round "7"]
[White "MaxLeto"]
[Black "Grossboss19"]
[Result "1-0"]
[WhiteElo "2450"]
[BlackElo "2594"]
[TimeControl "180+1"]
[EndTime "15:17:20 PDT"]
[Termination "MaxLeto won by resignation"]

1. g4 {[%clk 0:03:00.9]} 1... g6 {[%clk 0:02:55]} 2. Bg2 {[%clk 0:03:00.4]} 2...
Bg7 {[%clk 0:02:55.6]} 3. d4 {[%clk 0:03:00.8]} 3... d5 {[%clk 0:02:55.7]} 4. g5
{[%clk 0:03:01.2]} 4... c6 {[%clk 0:02:55.7]} 5. h4 {[%clk 0:03:00.9]} 5... h6
{[%clk 0:02:55.2]} 6. h5 {[%clk 0:02:57.8]} 6... Bf5 {[%clk 0:02:41.6]} 7. hxg6
{[%clk 0:02:52.4]} 7... Bxg6 {[%clk 0:02:42.5]} 8. Nf3 {[%clk 0:02:48.8]} 8...
hxg5 {[%clk 0:02:39.4]} 9. Rxh8 {[%clk 0:02:49.7]} 9... Bxh8 {[%clk 0:02:39.9]}
10. Bxg5 {[%clk 0:02:31.4]} 10... Nd7 {[%clk 0:02:37.2]} 11. c3 {[%clk 0:02:29]}
11... Qb6 {[%clk 0:02:33.6]} 12. Qb3 {[%clk 0:02:21.7]} 12... O-O-O {[%clk
0:02:32.5]} 13. Nbd2 {[%clk 0:02:21.2]} 13... Ngf6 {[%clk 0:02:26.1]} 14. Qa3
{[%clk 0:02:05.9]} 14... Re8 {[%clk 0:02:21.5]} 15. c4 {[%clk 0:02:00.3]} 15...
a6 {[%clk 0:02:05.2]} 16. Rc1 {[%clk 0:01:54.2]} 16... Kb8 {[%clk 0:01:55.4]}
17. Rc3 {[%clk 0:01:52.7]} 17... Ne4 {[%clk 0:01:39.3]} 18. Rb3 {[%clk
0:01:41.2]} 18... Qa7 {[%clk 0:01:38.9]} 19. Bf4+ {[%clk 0:00:46.8]} 19... Ka8
{[%clk 0:01:35.9]} 20. e3 {[%clk 0:00:46.6]} 20... e6 {[%clk 0:01:00.8]} 21. Bf1
{[%clk 0:00:42]} 21... Bg7 {[%clk 0:00:55]} 22. Nxe4 {[%clk 0:00:36.1]} 22...
Bxe4 {[%clk 0:00:54.7]} 23. Nd2 {[%clk 0:00:33.7]} 23... e5 {[%clk 0:00:45.3]}
24. Nxe4 {[%clk 0:00:24.4]} 24... dxe4 {[%clk 0:00:36]} 25. Qd6 {[%clk
0:00:17.9]} 25... Nb8 {[%clk 0:00:14.1]} 26. dxe5 {[%clk 0:00:15.6]} 26... Bf8
{[%clk 0:00:14]} 27. Qf6 {[%clk 0:00:13.9]} 27... b6 {[%clk 0:00:07.7]} 28. Bg2
{[%clk 0:00:14.2]} 28... Re6 {[%clk 0:00:06.5]} 29. Qd8 {[%clk 0:00:13.3]} 29...
Be7 {[%clk 0:00:06.7]} 30. Qc8 {[%clk 0:00:13]} 30... Qb7 {[%clk 0:00:04.9]} 31.
Qxb7+ {[%clk 0:00:12.5]} 31... Kxb7 {[%clk 0:00:05.8]} 32. Bxe4 {[%clk
0:00:12.8]} 32... Nd7 {[%clk 0:00:06.4]} 33. Bf5 {[%clk 0:00:13]} 33... Nc5
{[%clk 0:00:06.2]} 34. Bxe6 {[%clk 0:00:11.8]} 34... Nxb3 {[%clk 0:00:06.4]} 35.
Bxf7 {[%clk 0:00:12.3]} 35... Nc5 {[%clk 0:00:04.2]} 36. Bg6 {[%clk 0:00:12.7]}
36... Na4 {[%clk 0:00:04.1]} 37. b3 {[%clk 0:00:12.2]} 37... Nc3 {[%clk
0:00:04.5]} 38. a3 {[%clk 0:00:11.1]} 38... Bxa3 {[%clk 0:00:04.1]} 39. Kd2
{[%clk 0:00:11.1]} 39... Bb4 {[%clk 0:00:03.5]} 40. Kd3 {[%clk 0:00:11.6]} 40...
a5 {[%clk 0:00:04.1]} 41. Bg5 {[%clk 0:00:10.6]} 41... a4 {[%clk 0:00:02.9]} 42.
bxa4 {[%clk 0:00:10.8]} 42... Nxa4 {[%clk 0:00:03.8]} 43. e6 {[%clk 0:00:11.1]}
43... Nc5+ {[%clk 0:00:02.9]} 44. Kc2 {[%clk 0:00:10.7]} 44... Nxe6 {[%clk
0:00:03.4]} 45. Bf6 {[%clk 0:00:10.5]} 45... Kc7 {[%clk 0:00:03.3]} 46. Be5+
{[%clk 0:00:10.6]} 46... Bd6 {[%clk 0:00:03.3]} 47. Bc3 {[%clk 0:00:10.8]} 47...
Nc5 {[%clk 0:00:02.9]} 48. f4 {[%clk 0:00:10.1]} 48... Kd7 {[%clk 0:00:03.5]}
49. f5 {[%clk 0:00:09.7]} 49... Ne4 {[%clk 0:00:02.6]} 50. Bd4 {[%clk
0:00:09.5]} 50... Bc5 {[%clk 0:00:03.1]} 51. Kd3 {[%clk 0:00:09.5]} 51... Nd6
{[%clk 0:00:02.9]} 52. e4 {[%clk 0:00:08.2]} 52... Ke7 {[%clk 0:00:02.6]} 53. e5
{[%clk 0:00:08.1]} 53... Ne8 {[%clk 0:00:02.6]} 54. Bxc5+ {[%clk 0:00:07.1]}
54... bxc5 {[%clk 0:00:02.8]} 55. Bxe8 {[%clk 0:00:07.7]} 55... Kxe8 {[%clk
0:00:03.7]} 56. Ke4 {[%clk 0:00:07.8]} 56... Kf7 {[%clk 0:00:04.6]} 57. Kf4
{[%clk 0:00:07.3]} 57... Kg7 {[%clk 0:00:05.5]} 58. Kg5 {[%clk 0:00:07.7]} 58...
Kf7 {[%clk 0:00:06.4]} 59. Kh6 {[%clk 0:00:08]} 59... Kg8 {[%clk 0:00:06.6]} 60.
Kg6 {[%clk 0:00:08.4]} 60... Kf8 {[%clk 0:00:07.5]} 61. Kf6 {[%clk 0:00:09]}
61... Ke8 {[%clk 0:00:08.2]} 62. Ke6 {[%clk 0:00:09.7]} 1-0

[Event "Late-Titled-Tuesday-Blitz-June-25-2024"]
[Site "Chess.com"]
[Date "2024.06.25"]
[Round "7"]
[White "kubal123"]
[Black "protectiago"]
[Result "1/2-1/2"]
[WhiteElo "2283"]
[BlackElo "2132"]
[TimeControl "180+1"]
[EndTime "15:17:42 PDT"]
[Termination "Game drawn - insufficient material"]

1. e4 {[%clk 0:03:00.9]} 1... e5 {[%clk 0:02:51]} 2. Nf3 {[%clk 0:02:58.1]} 2...
Nc6 {[%clk 0:02:50.8]} 3. Bb5 {[%clk 0:02:58.5]} 3... a6 {[%clk 0:02:49.6]} 4.
Bxc6 {[%clk 0:02:58.3]} 4... dxc6 {[%clk 0:02:48.7]} 5. O-O {[%clk 0:02:58.8]}
5... Bg4 {[%clk 0:02:48.9]} 6. h3 {[%clk 0:02:58.2]} 6... h5 {[%clk 0:02:49.5]}
7. d3 {[%clk 0:02:56.3]} 7... Qf6 {[%clk 0:02:49.4]} 8. Nbd2 {[%clk 0:02:49]}
8... Ne7 {[%clk 0:02:49.2]} 9. Re1 {[%clk 0:02:34.1]} 9... Ng6 {[%clk
0:02:47.8]} 10. d4 {[%clk 0:02:34.6]} 10... Bd6 {[%clk 0:02:38.3]} 11. hxg4
{[%clk 0:02:28]} 11... hxg4 {[%clk 0:02:38.1]} 12. Nh2 {[%clk 0:02:28.7]} 12...
Rxh2 {[%clk 0:02:36.8]} 13. Kxh2 {[%clk 0:02:25.5]} 13... Qh4+ {[%clk
0:02:27.6]} 14. Kg1 {[%clk 0:02:25.3]} 14... exd4 {[%clk 0:02:24.9]} 15. Nf1
{[%clk 0:02:25.6]} 15... O-O-O {[%clk 0:02:16.7]} 16. g3 {[%clk 0:02:16]} 16...
Qh3 {[%clk 0:02:13.7]} 17. Nh2 {[%clk 0:01:50.8]} 17... Nh4 {[%clk 0:02:10.5]}
18. Qxg4+ {[%clk 0:01:39.8]} 18... Qxg4 {[%clk 0:02:10.5]} 19. Nxg4 {[%clk
0:01:40.7]} 19... Nf3+ {[%clk 0:02:10.9]} 20. Kf1 {[%clk 0:01:39.6]} 20... Nxe1
{[%clk 0:02:10.1]} 21. Kxe1 {[%clk 0:01:40.5]} 21... Re8 {[%clk 0:02:04.8]} 22.
f3 {[%clk 0:01:21.7]} 22... f5 {[%clk 0:02:04.6]} 23. Nf2 {[%clk 0:01:11.6]}
23... Bxg3 {[%clk 0:02:04.5]} 24. Kf1 {[%clk 0:01:11.5]} 24... Bxf2 {[%clk
0:02:02.9]} 25. Kxf2 {[%clk 0:01:12.4]} 25... fxe4 {[%clk 0:02:03.3]} 26. fxe4
{[%clk 0:01:13.3]} 26... Rxe4 {[%clk 0:02:03.5]} 27. Bd2 {[%clk 0:01:13.8]}
27... Kd7 {[%clk 0:01:48.1]} 28. Rg1 {[%clk 0:01:10.9]} 28... Re7 {[%clk
0:01:47.6]} 29. b4 {[%clk 0:01:08.2]} 29... Kd6 {[%clk 0:01:45.1]} 30. Rg6+
{[%clk 0:01:03.5]} 30... Kd5 {[%clk 0:01:44.5]} 31. Rg5+ {[%clk 0:01:02.2]}
31... Re5 {[%clk 0:01:29.9]} 32. Rxg7 {[%clk 0:00:48.4]} 32... Kc4 {[%clk
0:01:18.6]} 33. Rxc7 {[%clk 0:00:43.9]} 33... d3 {[%clk 0:01:14.9]} 34. cxd3+
{[%clk 0:00:17.1]} 34... Kxd3 {[%clk 0:01:14.1]} 35. Rd7+ {[%clk 0:00:17.4]}
35... Kc4 {[%clk 0:01:13.3]} 36. Rxb7 {[%clk 0:00:16.8]} 36... c5 {[%clk
0:00:51.2]} 37. bxc5 {[%clk 0:00:12.4]} 37... Rxc5 {[%clk 0:00:49.2]} 38. Ra7
{[%clk 0:00:11.4]} 38... a5 {[%clk 0:00:45]} 39. Bxa5 {[%clk 0:00:10]} 39...
Rf5+ {[%clk 0:00:28.8]} 40. Ke2 {[%clk 0:00:09.6]} 40... Rd5 {[%clk 0:00:27.8]}
41. Be1 {[%clk 0:00:07.7]} 41... Kb5 {[%clk 0:00:25.7]} 42. a4+ {[%clk
0:00:07.6]} 42... Kb6 {[%clk 0:00:22.4]} 43. Bf2+ {[%clk 0:00:08.1]} 43... Kc6
{[%clk 0:00:22.3]} 44. Ra6+ {[%clk 0:00:01.2]} 44... Kb7 {[%clk 0:00:20.5]} 45.
Rb6+ {[%clk 0:00:01.7]} 45... Kc7 {[%clk 0:00:20.4]} 46. Rb5 {[%clk 0:00:01.6]}
46... Rd7 {[%clk 0:00:17.8]} 47. Be3 {[%clk 0:00:01]} 47... Kc6 {[%clk
0:00:17.1]} 48. Bf2 {[%clk 0:00:01.9]} 48... Kc7 {[%clk 0:00:16.5]} 49. Rc5+
{[%clk 0:00:02.5]} 49... Kb7 {[%clk 0:00:16.4]} 50. Rb5+ {[%clk 0:00:03.4]}
50... Kc6 {[%clk 0:00:16.2]} 51. Rb4 {[%clk 0:00:04.1]} 51... Rd5 {[%clk
0:00:12.6]} 52. Be3 {[%clk 0:00:04.6]} 52... Rd7 {[%clk 0:00:08.5]} 53. Bd2
{[%clk 0:00:04.9]} 53... Rd5 {[%clk 0:00:07.9]} 54. Kd1 {[%clk 0:00:04.6]} 54...
Kc5 {[%clk 0:00:07.5]} 55. Rh4 {[%clk 0:00:04.2]} 55... Rd4 {[%clk 0:00:06.7]}
56. Rh5+ {[%clk 0:00:04]} 56... Kc6 {[%clk 0:00:05.7]} 57. a5 {[%clk 0:00:04.4]}
57... Ra4 {[%clk 0:00:05]} 58. Kc2 {[%clk 0:00:04.7]} 58... Ra2+ {[%clk
0:00:02.8]} 59. Kc1 {[%clk 0:00:04.1]} 59... Ra1+ {[%clk 0:00:02.3]} 60. Kb2
{[%clk 0:00:04.1]} 60... Rd1 {[%clk 0:00:02.9]} 61. Bc3 {[%clk 0:00:04.4]} 61...
Rd5 {[%clk 0:00:02.8]} 62. Kb3 {[%clk 0:00:05.3]} 62... Rxh5 {[%clk 0:00:02.7]}
63. Kc4 {[%clk 0:00:05.9]} 63... Rc5+ {[%clk 0:00:02]} 64. Kb4 {[%clk
0:00:06.1]} 64... Rxc3 {[%clk 0:00:02.1]} 65. Kxc3 {[%clk 0:00:06.3]} 65... Kb5
{[%clk 0:00:02.5]} 66. a6 {[%clk 0:00:07.2]} 66... Kxa6 {[%clk 0:00:02.7]}
1/2-1/2

[Event "Late-Titled-Tuesday-Blitz-June-25-2024"]
[Site "Chess.com"]
[Date "2024.06.25"]
[Round "7"]
[White "Pitomina"]
[Black "Zhigalko_Sergei"]
[Result "1/2-1/2"]
[WhiteElo "2573"]
[BlackElo "2963"]
[TimeControl "180+1"]
[EndTime "15:17:51 PDT"]
[Termination "Game drawn - insufficient material"]

1. d4 {[%clk 0:03:00.9]} 1... Nf6 {[%clk 0:03:00.1]} 2. Bf4 {[%clk 0:03:00.9]}
2... d5 {[%clk 0:02:54]} 3. e3 {[%clk 0:02:59.6]} 3... c5 {[%clk 0:02:54.4]} 4.
c3 {[%clk 0:02:59.3]} 4... Nc6 {[%clk 0:02:54.1]} 5. Nd2 {[%clk 0:02:58.8]} 5...
Bf5 {[%clk 0:02:51.6]} 6. Ngf3 {[%clk 0:02:57.2]} 6... e6 {[%clk 0:02:40.1]} 7.
Bb5 {[%clk 0:02:56.3]} 7... Qb6 {[%clk 0:02:31]} 8. Qa4 {[%clk 0:02:40.6]} 8...
Be7 {[%clk 0:02:22.5]} 9. dxc5 {[%clk 0:02:23.9]} 9... Bxc5 {[%clk 0:02:16.3]}
10. Nb3 {[%clk 0:02:22]} 10... O-O {[%clk 0:02:09.9]} 11. Nxc5 {[%clk 0:02:19]}
11... Qxc5 {[%clk 0:02:10.8]} 12. Bxc6 {[%clk 0:02:01.3]} 12... bxc6 {[%clk
0:02:00.7]} 13. O-O {[%clk 0:01:56.2]} 13... Rfc8 {[%clk 0:01:54.4]} 14. Rac1
{[%clk 0:01:40.9]} 14... Qb6 {[%clk 0:01:28]} 15. b3 {[%clk 0:01:32.1]} 15...
Ne4 {[%clk 0:01:20.6]} 16. c4 {[%clk 0:01:23.3]} 16... Nc5 {[%clk 0:01:02.7]}
17. Qa3 {[%clk 0:01:21.3]} 17... Nd3 {[%clk 0:01:02.8]} 18. Rc3 {[%clk
0:01:09.4]} 18... d4 {[%clk 0:00:47.9]} 19. c5 {[%clk 0:00:57.2]} 19... Qd8
{[%clk 0:00:46.8]} 20. Rc4 {[%clk 0:00:48.7]} 20... Nxf4 {[%clk 0:00:35.1]} 21.
exf4 {[%clk 0:00:49.6]} 21... d3 {[%clk 0:00:33.6]} 22. Rd4 {[%clk 0:00:47.6]}
22... Qc7 {[%clk 0:00:20.5]} 23. Ne5 {[%clk 0:00:43.7]} 23... Rd8 {[%clk
0:00:20.6]} 24. Rd6 {[%clk 0:00:44.3]} 24... f6 {[%clk 0:00:19.4]} 25. Nc4
{[%clk 0:00:44.1]} 25... Rd7 {[%clk 0:00:09.6]} 26. Rd1 {[%clk 0:00:37.7]} 26...
Rad8 {[%clk 0:00:10]} 27. f3 {[%clk 0:00:36.8]} 27... h5 {[%clk 0:00:05.3]} 28.
g3 {[%clk 0:00:31.6]} 28... Kh7 {[%clk 0:00:05]} 29. Kg2 {[%clk 0:00:31.7]}
29... Qb7 {[%clk 0:00:03.6]} 30. Rd2 {[%clk 0:00:30.4]} 30... Qb5 {[%clk
0:00:03]} 31. h3 {[%clk 0:00:27]} 31... Bg6 {[%clk 0:00:02.3]} 32. g4 {[%clk
0:00:26.9]} 32... hxg4 {[%clk 0:00:01.9]} 33. hxg4 {[%clk 0:00:27.8]} 33... a6
{[%clk 0:00:01.6]} 34. Kg3 {[%clk 0:00:27.9]} 34... Kg8 {[%clk 0:00:01.9]} 35.
Rxe6 {[%clk 0:00:12.9]} 35... Bf7 {[%clk 0:00:01.7]} 36. Rd6 {[%clk 0:00:13.3]}
36... Bxc4 {[%clk 0:00:01.9]} 37. bxc4 {[%clk 0:00:14.2]} 37... Qxc4 {[%clk
0:00:02]} 38. R2xd3 {[%clk 0:00:13]} 38... Rxd6 {[%clk 0:00:01.9]} 39. Rxd6
{[%clk 0:00:13.7]} 39... Rc8 {[%clk 0:00:01.7]} 40. Qb3 {[%clk 0:00:13.8]} 40...
Qxb3 {[%clk 0:00:02]} 41. axb3 {[%clk 0:00:14.7]} 41... a5 {[%clk 0:00:02.1]}
42. f5 {[%clk 0:00:15]} 42... Rb8 {[%clk 0:00:02.4]} 43. Rxc6 {[%clk 0:00:15]}
43... Rxb3 {[%clk 0:00:03]} 44. Ra6 {[%clk 0:00:15.4]} 44... Rb5 {[%clk
0:00:02.6]} 45. c6 {[%clk 0:00:15.7]} 45... Rc5 {[%clk 0:00:03.1]} 46. c7 {[%clk
0:00:15]} 46... Rxc7 {[%clk 0:00:03.2]} 47. Rxa5 {[%clk 0:00:15.6]} 47... Rc4
{[%clk 0:00:03.6]} 48. Kh4 {[%clk 0:00:15.8]} 48... Kh7 {[%clk 0:00:03.5]} 49.
Ra2 {[%clk 0:00:15.1]} 49... Rc1 {[%clk 0:00:03.4]} 50. Rh2 {[%clk 0:00:15.4]}
50... Kg8 {[%clk 0:00:03.5]} 51. Kg3 {[%clk 0:00:15.9]} 51... Kf7 {[%clk
0:00:03.7]} 52. Rb2 {[%clk 0:00:15.6]} 52... Rc7 {[%clk 0:00:03.7]} 53. Rd2
{[%clk 0:00:14.9]} 53... Ra7 {[%clk 0:00:03.9]} 54. Rd3 {[%clk 0:00:14.1]} 54...
Rb7 {[%clk 0:00:04.3]} 55. f4 {[%clk 0:00:14.6]} 55... Ra7 {[%clk 0:00:03.8]}
56. g5 {[%clk 0:00:15]} 56... fxg5 {[%clk 0:00:03.3]} 57. fxg5 {[%clk
0:00:15.9]} 57... Rb7 {[%clk 0:00:03.4]} 58. Kg4 {[%clk 0:00:16]} 58... Ra7
{[%clk 0:00:03.1]} 59. g6+ {[%clk 0:00:15.6]} 59... Kf6 {[%clk 0:00:02.5]} 60.
Rd6+ {[%clk 0:00:15.6]} 60... Ke5 {[%clk 0:00:02.9]} 61. Re6+ {[%clk 0:00:16.3]}
61... Kd5 {[%clk 0:00:03.5]} 62. Re3 {[%clk 0:00:15.9]} 62... Kd4 {[%clk
0:00:03.4]} 63. Re1 {[%clk 0:00:15.8]} 63... Ra2 {[%clk 0:00:01.5]} 64. f6
{[%clk 0:00:15.2]} 64... gxf6 {[%clk 0:00:01.3]} 65. Kf5 {[%clk 0:00:15.7]}
65... Rf2+ {[%clk 0:00:01.4]} 66. Ke6 {[%clk 0:00:16.1]} 66... f5 {[%clk
0:00:01.7]} 67. g7 {[%clk 0:00:14.4]} 67... Rg2 {[%clk 0:00:01.7]} 68. Kf7
{[%clk 0:00:14.7]} 68... f4 {[%clk 0:00:02.3]} 69. Re6 {[%clk 0:00:13.7]} 69...
f3 {[%clk 0:00:02.1]} 70. Rf6 {[%clk 0:00:13.2]} 70... f2 {[%clk 0:00:01.9]} 71.
g8=Q {[%clk 0:00:10.4]} 71... Rxg8 {[%clk 0:00:01.7]} 72. Kxg8 {[%clk
0:00:11.3]} 72... Ke3 {[%clk 0:00:02.3]} 73. Re6+ {[%clk 0:00:11.6]} 73... Kf3
{[%clk 0:00:02.6]} 74. Rf6+ {[%clk 0:00:12.5]} 74... Ke2 {[%clk 0:00:03.2]} 75.
Rxf2+ {[%clk 0:00:13]} 75... Kxf2 {[%clk 0:00:04.1]} 1/2-1/2